bitfinex/quotes_SOLUSD_20240818
["timestamp","ask_amount","ask_price","bid_price","bid_amount"]
[1723966579664,6.4917,141.92,141.85,65.0]
[1723966579665,6.4917,141.92,141.85,45.0]
[1723966579963,16.50138,141.91,141.84,9.35]
[1723966583150,0.12549,141.9,141.8,16.5207]
[1723966583352,0.12549,141.88,141.79,8.92226026]
[1723966583552,0.50196,141.88,141.79,8.92226026]
[1723966583852,16.2504,141.87,141.79,8.92226026]
[1723966584747,16.2504,141.87,141.8,65.0]
[1723966584970,16.2504,141.87,141.81,9.35]
[1723966585172,16.2504,141.87,141.8,65.0]
[1723966585173,16.2504,141.87,141.83,9.35]
[1723966597301,16.2504,141.87,141.81,9.35]
[1723966597962,0.12549,141.86,141.8,65.0]
[1723966598167,6.1093,141.85,141.8,20.0]
[1723966598481,6.1093,141.85,141.79,20.0]
[1723966598680,6.1093,141.85,141.79,29.35]
[1723966601389,6.1093,141.85,141.81,9.35]
[1723966608193,16.2504,141.87,141.83,9.35]
[1723966608392,16.2504,141.87,141.85,9.35]
[1723966610870,6.2505,141.89,141.85,9.35]
[1723966616378,6.2505,141.89,141.83,9.35]
[1723966617679,6.2505,141.89,141.82,45.0]
[1723966617898,0.50196,141.88,141.81,9.35]
[1723966622190,0.12549,141.88,141.82,45.0]
[1723966622393,6.2505,141.89,141.83,9.35]
[1723966623596,6.2505,141.89,141.83,10.75852419]
[1723966623801,6.2505,141.89,141.83,9.35]
[1723966634581,15.619,141.9,141.85,9.35]
[1723966634786,15.619,141.9,141.87,9.35]
[1723966635001,6.1343,141.92,141.87,10.75704469]
[1723966635486,6.1343,141.92,141.87,9.35]
[1723966637697,6.1343,141.92,141.85,9.35]
[1723966639023,6.1343,141.92,141.87,9.35]
[1723966643614,6.1343,141.92,141.89,9.35]
[1723966647022,6.5808,141.96,141.89,9.35]
[1723966647923,6.5808,141.96,141.92,9.35]
[1723966649413,6.5808,141.96,141.9,9.35]
[1723966655940,6.5808,141.96,141.85,6.6491]
[1723966655941,6.5808,141.96,141.92,9.35]
[1723966656325,6.5808,141.96,141.92,10.7555434]
[1723966656524,6.5808,141.96,141.93,1.40544436]
[1723966657337,6.5808,141.96,141.92,10.75554339]
[1723966657525,6.5808,141.96,141.93,1.40618462]
[1723966660218,6.5808,141.96,141.92,9.35]
[1723966660425,6.5808,141.96,141.93,1.40820034]
[1723966661035,6.5808,141.96,141.92,9.35]
[1723966666740,21.7249,142.0,141.94,9.35]
[1723966666927,21.85039,142.0,141.94,9.35]
[1723966667244,21.7249,142.0,141.94,9.35]
[1723966667457,21.7249,142.0,141.95,1.40875237]
[1723966667636,21.7249,142.0,141.96,9.35]
[1723966669427,21.7249,142.0,141.91,45.0]
[1723966669428,21.7249,142.0,141.94,9.35]
[1723966671152,21.7249,142.0,141.92,9.35]
[1723966671340,21.7249,142.0,141.93,20.0]
[1723966675354,0.12549,141.99,141.92,9.35]
[1723966675551,0.25098,141.99,141.92,9.35]
[1723966678064,0.25098,141.99,141.89,0.12549]
[1723966678352,0.25098,141.99,141.92,9.35]
[1723966688260,0.12549,141.99,141.94,9.35]
[1723966688839,21.7249,142.0,141.94,9.35]
[1723966694349,21.7249,142.0,141.95,45.0]
[1723966696864,21.7249,142.0,141.94,9.35]
[1723966700047,21.7249,142.0,141.92,9.35]
[1723966700250,21.7249,142.0,141.93,65.0]
[1723966701166,15.4259,141.97,141.89,7.36509999]
[1723966701479,0.12549,141.96,141.88,9.35]
[1723966701684,15.6151,141.95,141.86,16.71742133]
[1723966702056,0.12549,141.94,141.86,9.35]
[1723966702980,0.12549,141.94,141.87,45.0]
[1723966703685,0.12549,141.94,141.87,9.35]
[1723966707787,6.2651,141.95,141.89,9.35]
[1723966714773,15.0794,141.94,141.84,7.36749927]
[1723966714976,0.50196,141.93,141.85,20.0]
[1723966715579,0.50196,141.93,141.84,20.0]
[1723966716395,0.12549,141.93,141.87,9.35]
[1723966716567,15.0794,141.94,141.87,9.35]
[1723966727381,15.0794,141.94,141.85,45.0]
[1723966727587,6.0214,141.93,141.86,29.35]
[1723966727795,6.0214,141.93,141.87,45.0]
[1723966730985,6.0214,141.93,141.88,9.35]
[1723966735101,6.0214,141.93,141.89,45.0]
[1723966736987,15.0794,141.94,141.9,9.35]
[1723966742038,6.3371,141.96,141.91,45.0]
[1723966744714,6.3371,141.96,141.9,9.35]
[1723966765125,6.3371,141.96,141.92,9.35]
[1723966765756,6.3371,141.96,141.93,1.40891862]
[1723966766421,6.3371,141.96,141.92,9.35]
[1723966767043,6.3371,141.96,141.93,46.40840681]
[1723966768223,6.3371,141.96,141.93,45.0]
[1723966768835,6.3371,141.96,141.94,1.40824085]
[1723966769129,6.3371,141.96,141.93,45.0]
[1723966769650,6.3371,141.96,141.91,9.35]
[1723966769837,6.3371,141.96,141.92,45.0]
[1723966770032,6.3371,141.96,141.93,9.35]
[1723966778328,6.1262,142.0,141.95,9.35]
[1723966778533,6.1262,142.0,141.96,1.40843395]
[1723966779369,6.1262,142.0,141.96,46.40843395]
[1723966779769,6.1262,142.0,141.97,1.40853438]
[1723966779933,6.1262,142.0,141.96,45.0]
[1723966780363,6.1262,142.0,141.93,9.35]
[1723966780562,6.1262,142.0,141.94,45.0]
[1723966781638,6.1262,142.0,141.93,9.35]
[1723966789057,6.1262,142.0,141.94,45.0]
[1723966793765,6.1262,142.0,141.95,9.35]
[1723966800873,6.1262,142.0,141.96,45.0]
[1723966801873,6.1262,142.0,141.9,15.6562]
[1723966802153,6.1262,142.0,141.94,9.35]
[1723966802767,6.1262,142.0,141.95,45.0]
[1723966804454,6.1262,142.0,141.91,20.12549]
[1723966804659,6.1262,142.0,141.92,54.35]
[1723966804869,6.1262,142.0,141.92,9.35]
[1723966805184,0.12549,141.99,141.92,9.35]
[1723966805480,0.25098,141.99,141.92,9.35]
[1723966805686,16.6424,141.98,141.92,9.35]
[1723966806980,6.5251,141.96,141.89,7.36589684]
[1723966807163,6.5251,141.96,141.9,9.35]
[1723966810859,6.5251,141.96,141.92,9.35]
[1723966818657,6.5251,141.96,141.91,45.0]
[1723966818987,6.5251,141.96,141.89,9.35]
[1723966819168,6.5251,141.96,141.9,45.0]
[1723966822064,6.5251,141.96,141.89,9.35]
[1723966822268,16.48279,141.95,141.86,15.5042]
[1723966822467,25.83279,141.95,141.87,20.0]
[1723966822879,6.65059,141.94,141.85,7.36258705]
[1723966823180,16.77257,141.93,141.85,9.35]
[1723966823360,9.72647,141.93,141.85,9.35]
[1723966824361,6.5251,141.94,141.84,390.3]
[1723966824563,6.5251,141.94,141.85,29.04746784]
[1723966824769,6.5251,141.94,141.86,8.92197784]
[1723966825084,6.5251,141.94,141.87,20.12549]
[1723966825595,6.5251,141.94,141.88,45.0]
[1723966825770,6.5251,141.94,141.9,9.35]
[1723966828987,6.5251,141.94,141.91,45.0]
[1723966842487,6.5251,141.94,141.9,9.35]
[1723966853699,7.17129,141.93,141.85,7.3671247]
[1723966854027,7.17129,141.93,141.86,9.35]
[1723966854190,0.12549,141.93,141.86,9.35]
[1723966854392,0.25098,141.93,141.86,9.35]
[1723966856522,6.5251,141.94,141.88,9.35]
[1723966857210,6.5251,141.94,141.9,9.35]
[1723966857997,28.3199,141.99,141.92,9.35]
[1723966858898,28.3199,141.99,141.91,45.0]
[1723966859117,7.0434,141.98,141.91,45.0]
[1723966860016,0.12549,141.97,141.91,45.0]
[1723966860392,0.25098,141.97,141.91,45.0]
[1723966860594,7.29488,141.97,141.9,9.35]
[1723966860792,13.0836,141.96,141.85,0.12549]
[1723966861018,13.0836,141.96,141.86,9.35]
[1723966861019,15.73946,141.95,141.86,9.35]
[1723966861325,15.73946,141.95,141.87,20.0]
[1723966861821,15.61397,141.95,141.88,9.35]
[1723966861998,15.36299,141.95,141.88,9.35]
[1723966862703,15.36299,141.95,141.89,45.0]
[1723966865122,15.2375,141.95,141.89,45.0]
[1723966884732,15.2375,141.95,141.88,45.0]
[1723966885325,22.4336,141.96,141.93,9.35]
[1723966885326,6.0393,141.96,141.93,9.35]
[1723966891639,22.0193,141.99,141.93,9.35]
[1723966891813,22.0193,141.99,141.91,9.35]
[1723966892018,38.4121,141.99,141.92,45.0]
[1723966892226,38.4121,141.99,141.91,9.35]
[1723966892227,0.25098,141.98,141.91,9.35]
[1723966892929,0.25098,141.98,141.88,15.6118]
[1723966893123,0.25098,141.98,141.9,9.35]
[1723966893726,0.25098,141.98,141.91,45.0]
[1723966900933,0.25098,141.98,141.92,9.35]
[1723966902041,0.25098,141.98,141.92,10.7582576]
[1723966902848,38.4121,141.99,141.92,9.35]
[1723966902849,22.0193,141.99,141.92,9.35]
[1723966903041,22.0193,141.99,141.94,9.35]
[1723966911273,22.0193,141.99,141.92,9.35]
[1723966911564,31.3693,141.99,141.93,45.0]
[1723966911765,31.3693,141.99,141.91,45.0]
[1723966912073,31.3693,141.99,141.9,45.0]
[1723966912267,31.3693,141.99,141.91,29.35]
[1723966912476,31.3693,141.99,141.92,45.0]
[1723966914947,0.12549,141.98,141.92,45.0]
[1723966915148,0.25098,141.98,141.91,29.35]
[1723966920363,16.3283,141.95,141.86,7.36464076]
[1723966920571,0.12549,141.94,141.86,16.71464076]
[1723966920882,6.3142,141.93,141.83,8.92197784]
[1723966921074,6.3142,141.93,141.85,9.35]
[1723966922688,6.3142,141.93,141.86,20.0]
[1723966923000,6.3142,141.93,141.87,9.35]
[1723966930186,6.3142,141.93,141.88,45.0]
[1723966931295,6.3142,141.93,141.87,54.35]
[1723966932587,6.3142,141.93,141.89,9.35]
[1723966945889,23.373,141.95,141.89,9.35]
[1723966945890,16.3283,141.95,141.89,9.35]
[1723966946090,16.3283,141.95,141.87,45.0]
[1723966946301,16.3283,141.95,141.88,20.0]
[1723966946512,16.3283,141.95,141.91,9.35]
[1723966953502,6.3502,141.96,141.91,9.35]
[1723966960639,6.3502,141.96,141.93,9.35]
[1723966961014,16.0016,141.99,141.93,9.35]
[1723966961215,16.0016,141.99,141.95,9.35]
[1723966974145,6.0422,142.0,141.97,9.35]
[1723966978319,22.5088,142.03,141.97,9.35]
[1723966983365,22.5088,142.03,141.94,45.0]
[1723966983571,22.5088,142.03,141.9,8.92197784]
[1723966983572,16.89356,142.02,141.9,8.92197784]
[1723966983773,0.12549,141.99,141.91,9.35]
[1723966983978,6.3446,141.98,141.91,9.35]
[1723966984477,15.6946,141.98,141.91,9.35]
[1723966984646,15.6946,141.98,141.89,22.40927435]
[1723966984647,16.1642,141.97,141.89,7.36287435]
[1723966984847,16.1642,141.97,141.89,9.35]
[1723966984848,16.28969,141.97,141.89,9.35]
[1723966985347,9.60098,141.96,141.89,9.35]
[1723966985868,9.60098,141.96,141.86,16.28581573]
[1723966985869,9.60098,141.96,141.87,9.35]
[1723966986660,9.60098,141.96,141.88,20.0]
[1723966986861,0.25098,141.96,141.89,9.35]
[1723966988854,0.25098,141.96,141.88,20.0]
[1723966989058,0.25098,141.96,141.89,45.0]
[1723966995262,25.76518,141.97,141.89,45.0]
[1723967001293,25.5142,141.97,141.89,45.0]
[1723967003985,6.1327,141.95,141.89,45.0]
[1723967004194,6.1327,141.95,141.88,29.35]
[1723967005170,6.1327,141.95,141.88,9.35]
[1723967005892,9.35,141.93,141.85,7.35254494]
[1723967006097,0.12549,141.92,141.86,9.35]
[1723967006466,15.67647,141.94,141.86,9.35]
[1723967006685,0.12549,141.93,141.86,9.35]
[1723967006992,15.55098,141.94,141.88,9.35]
[1723967007285,15.3,141.94,141.9,9.35]
[1723967007693,15.3,141.94,141.88,9.35]
[1723967027390,0.25098,141.93,141.86,9.35]
[1723967030181,15.3,141.94,141.88,9.35]
[1723967033397,0.12549,141.93,141.87,45.0]
[1723967033583,0.25098,141.93,141.87,9.35]
[1723967033788,6.3333,141.92,141.85,9.35]
[1723967034110,6.3333,141.92,141.86,20.0]
[1723967034501,6.3333,141.92,141.84,20.0]
[1723967034689,6.3333,141.92,141.86,9.35]
[1723967045525,6.3333,141.92,141.88,9.35]
[1723967046220,15.3,141.94,141.89,45.0]
[1723967046520,6.3191,141.95,141.89,45.0]
[1723967046820,6.3191,141.95,141.88,45.12549]
[1723967047027,6.3191,141.95,141.89,20.0]
[1723967047320,6.3191,141.95,141.92,9.35]
[1723967049518,6.3191,141.95,141.93,1.40846105]
[1723967049726,22.7093,141.98,141.94,9.35]
[1723967050224,22.7093,141.98,141.96,9.35]
[1723967050824,15.225,142.01,141.97,1.40861668]
[1723967051012,15.225,142.01,141.98,9.35]
[1723967052734,15.225,142.01,141.96,9.35]
[1723967054207,15.225,142.01,141.92,15.0139]
[1723967054532,15.225,142.01,141.89,37.4]
[1723967054533,0.12549,142.0,141.93,9.35]
[1723967056032,15.225,142.01,141.94,45.0]
[1723967057133,15.225,142.01,141.95,9.35]
[1723967058641,15.225,142.01,141.96,45.0]
[1723967065742,15.225,142.01,141.95,9.35]
[1723967066633,15.225,142.01,141.89,53.6828]
[1723967066943,15.225,142.01,141.94,9.35]
[1723967068037,15.225,142.01,141.95,45.0]
[1723967074146,15.225,142.01,141.96,10.7580487]
[1723967075145,15.225,142.01,141.98,9.35]
[1723967075321,15.225,142.01,141.99,1.40826998]
[1723967076446,15.225,142.01,141.98,10.75839627]
[1723967077039,6.1528,142.02,141.99,1.40829708]
[1723967079248,15.8311,142.04,141.99,1.40838618]
[1723967079427,15.8311,142.04,141.98,9.35]
[1723967080264,15.8311,142.04,141.99,45.0]
[1723967082268,15.8311,142.04,141.96,9.35]
[1723967082432,15.8311,142.04,141.97,45.0]
[1723967094562,15.8311,142.04,141.98,9.35]
[1723967094762,15.8311,142.04,141.99,45.0]
[1723967095276,15.8311,142.04,141.98,9.35]
[1723967097560,15.8311,142.04,141.96,9.35]
[1723967097874,15.8311,142.04,141.97,45.0]
[1723967099558,22.8715,142.04,141.96,9.35]
[1723967099762,0.50196,142.03,141.96,9.35]
[1723967100365,6.1374,142.02,141.94,9.35]
[1723967100575,6.1374,142.02,141.95,20.0]
[1723967100760,13.1788,142.02,141.94,9.35]
[1723967101062,9.35,142.0,141.92,9.35]
[1723967101262,22.45627,142.01,141.92,9.35]
[1723967101475,15.41447,142.01,141.92,9.35]
[1723967101863,15.038,142.01,141.94,9.35]
[1723967102176,5.73205865,142.01,141.94,9.35]
[1723967102479,5.73205865,142.01,141.95,45.0]
[1723967102778,5.73205865,142.01,141.96,9.35]
[1723967104789,5.73205865,142.01,141.95,45.0]
[1723967105175,5.73205865,142.01,141.9,16.4358]
[1723967105489,5.73205865,142.01,141.93,9.35]
[1723967105661,5.73205865,142.01,141.94,20.0]
[1723967106965,5.73205865,142.01,141.95,1.4083064]
[1723967107689,5.73205865,142.01,141.94,29.35]
[1723967108292,5.73205865,142.01,141.95,45.0]
[1723967108667,5.73205865,142.01,141.96,1.40779474]
[1723967108866,5.73205865,142.01,141.95,45.0]
[1723967109385,5.73205865,142.01,141.96,9.35]
[1723967115879,5.73205865,142.01,141.97,45.0]
[1723967116883,6.1374,142.02,141.97,45.0]
[1723967117784,6.1374,142.02,141.98,9.35]
[1723967118567,6.1374,142.02,141.99,0.97388191]
[1723967119679,6.1374,142.02,141.99,43.47388191]
[1723967119874,6.1374,142.02,141.98,9.35]
[1723967120174,15.9179,142.04,141.96,0.12549]
[1723967120377,15.9179,142.04,141.96,20.50196]
[1723967120987,15.9179,142.04,141.96,21.9101222]
[1723967121989,15.9179,142.04,141.97,45.0]
[1723967122183,15.9179,142.04,142.0,9.35]
[1723967122579,15.9179,142.04,141.97,45.0]
[1723967123670,15.9179,142.04,141.98,9.35]
[1723967123871,15.9179,142.04,141.99,45.0]
[1723967125092,6.5296,142.06,142.02,9.35]
[1723967125291,6.5296,142.06,142.03,1.4067908]
[1723967125592,6.5296,142.06,141.99,45.0]
[1723967125801,6.5296,142.06,142.0,20.0]
[1723967126084,6.5296,142.06,142.01,45.0]
[1723967126297,6.5296,142.06,142.01,54.35]
[1723967128074,6.5296,142.06,142.01,45.0]
[1723967128288,15.8796,142.06,142.0,20.0]
[1723967128492,15.8796,142.06,141.96,20.0]
[1723967128690,16.85348191,142.06,141.96,20.0]
[1723967128888,15.8796,142.06,141.96,20.0]
[1723967129288,22.9189,142.06,141.96,29.35]
[1723967129607,24.83946191,142.05,141.96,29.35]
[1723967129908,6.26529,142.04,141.96,29.35]
[1723967130284,6.1398,142.04,141.96,29.35]
[1723967130477,6.1398,142.04,141.98,9.35]
[1723967132198,6.1398,142.04,141.99,46.40552467]
[1723967132397,6.1398,142.04,142.0,9.35]
[1723967132592,6.1398,142.04,142.01,1.40561613]
[1723967133901,6.1398,142.04,142.01,45.0]
[1723967138592,6.1398,142.04,141.99,9.35]
[1723967138790,6.1398,142.04,142.0,45.0]
[1723967142588,6.1398,142.04,141.99,9.35]
[1723967144715,6.1398,142.04,142.0,45.0]
[1723967145812,6.1398,142.04,142.01,9.35]
[1723967150010,6.1398,142.04,142.0,45.0]
[1723967150210,6.1398,142.04,142.0,54.35]
[1723967155398,16.5745,142.05,142.0,54.35]
[1723967160938,16.5745,142.05,142.0,45.0]
[1723967163648,16.5745,142.05,142.01,9.35]
[1723967163830,6.3028,142.07,142.01,9.35]
[1723967164037,6.3028,142.07,142.02,45.0]
[1723967164229,6.3028,142.07,142.01,0.12549]
[1723967164433,6.3028,142.07,142.01,20.37647]
[1723967164638,6.3028,142.07,142.02,45.0]
[1723967164821,6.3028,142.07,142.03,9.35]
[1723967165721,16.4126,142.09,142.04,45.0]
[1723967175651,17.38648191,142.09,142.01,20.12549]
[1723967175824,17.38648191,142.09,142.01,9.35]
[1723967176029,17.38648191,142.09,142.02,65.0]
[1723967176248,16.4126,142.09,142.02,65.0]
[1723967179632,16.4126,142.09,142.03,9.35]
[1723967179962,16.4126,142.09,142.04,45.0]
[1723967184756,16.4126,142.09,142.03,9.35]
[1723967185866,16.4126,142.09,142.02,20.0]
[1723967191871,16.4126,142.09,142.03,9.35]
[1723967192377,16.4126,142.09,142.04,45.0]
[1723967193348,16.4126,142.09,142.03,9.35]
[1723967193857,0.97388191,142.08,142.02,20.0]
[1723967194071,0.97388191,142.08,142.03,45.0]
[1723967194269,16.4126,142.09,142.03,45.0]
[1723967198850,16.4126,142.09,142.02,9.35]
[1723967199251,16.4126,142.09,142.03,45.0]
[1723967200953,0.12549,142.08,142.0,20.0]
[1723967201154,7.0401,142.05,141.98,16.28511618]
[1723967201484,6.61749,142.04,141.96,9.35]
[1723967201652,6.74298,142.04,141.96,9.35]
[1723967202163,13.78358,142.04,141.96,9.35]
[1723967202566,6.74298,142.04,141.96,9.35]
[1723967202760,6.61749,142.04,141.96,9.35]
[1723967203076,6.492,142.04,141.97,45.0]
[1723967203289,6.492,142.04,141.97,9.35]
[1723967204781,13.5323,142.04,141.97,9.35]
[1723967205665,6.492,142.04,141.97,9.35]
[1723967207762,0.25098,142.03,141.97,9.35]
[1723967211380,0.25098,142.03,141.97,10.75729741]
[1723967216084,6.492,142.04,141.97,10.75729741]
[1723967217380,6.492,142.04,141.97,9.35]
[1723967217596,6.492,142.04,141.99,9.35]
[1723967224110,6.492,142.04,142.0,1.40681896]
[1723967224401,6.492,142.04,141.99,9.35]
[1723967226241,6.492,142.04,142.01,9.35]
[1723967227903,6.492,142.04,142.0,45.0]
[1723967232003,6.492,142.04,141.96,61.75957784]
[1723967232291,6.492,142.04,141.98,9.35]
[1723967234893,0.12549,142.03,141.97,65.0]
[1723967235117,0.12549,142.03,141.96,18.27197784]
[1723967235315,0.12549,142.03,141.96,9.35]
[1723967236325,0.25098,142.03,141.94,8.92197784]
[1723967236493,15.0537,142.02,141.95,29.35]
[1723967238095,15.0537,142.02,141.97,9.35]
[1723967240218,15.0537,142.02,141.98,45.0]
[1723967247233,15.0537,142.02,141.97,9.35]
[1723967247530,15.0537,142.02,141.95,18.27197784]
[1723967248619,15.0537,142.02,141.96,45.0]
[1723967253122,22.0949,142.02,141.95,8.92197784]
[1723967253297,7.38168191,142.01,141.93,0.12549]
[1723967253624,7.38168191,142.01,141.9,7.35787014]
[1723967253625,22.8017,141.97,141.9,7.35787014]
[1723967253814,0.97388191,141.96,141.89,390.3]
[1723967254118,22.8017,141.97,141.89,390.3]
[1723967254296,0.12549,141.96,141.85,405.8794]
[1723967254497,6.4078,141.97,141.92,9.35]
[1723967266126,6.4078,142.01,141.96,9.35]
[1723967269016,6.4078,142.01,141.97,45.0]
[1723967269410,6.4078,142.01,141.96,9.35]
[1723967269610,6.4078,142.01,141.95,9.35]
[1723967273537,6.4078,142.01,141.9,16.98775761]
[1723967273538,6.4078,142.01,141.97,9.35]
[1723967273774,6.4078,142.01,141.98,1.40756404]
[1723967274310,6.4078,142.01,141.97,9.35]
[1723967275648,7.38168191,142.01,141.95,9.35]
[1723967275833,6.4078,142.01,141.96,45.0]
[1723967279147,6.4078,142.01,141.95,9.35]
[1723967280122,0.97388191,142.0,141.93,9.35]
[1723967280324,0.97388191,142.0,141.94,65.0]
[1723967280539,6.4078,142.01,141.94,65.0]
[1723967281130,6.4078,142.01,141.95,9.35]
[1723967283934,7.38168191,142.01,141.95,9.35]
[1723967284135,7.38168191,142.01,141.94,65.0]
[1723967284655,7.38168191,142.01,141.94,45.0]
[1723967284959,0.12549,142.0,141.92,9.35]
[1723967285126,0.12549,142.0,141.93,45.0]
[1723967287249,0.12549,142.0,141.94,9.35]
[1723967287447,6.4078,142.01,141.94,9.35]
[1723967287652,6.4078,142.01,141.95,45.0]
[1723967298242,0.97388191,142.0,141.94,9.35]
[1723967298460,0.97388191,142.0,141.92,9.35]
[1723967298771,15.1694,141.98,141.9,15.5794]
[1723967298947,0.97388191,141.97,141.91,20.0]
[1723967299153,0.97388191,141.97,141.9,15.5794]
[1723967300069,0.97388191,141.97,141.91,45.0]
[1723967300448,15.1694,141.98,141.91,45.0]
[1723967300774,16.14328191,141.98,141.91,45.0]
[1723967301442,7.33728191,141.97,141.89,9.35]
[1723967301644,7.33728191,141.97,141.9,65.0]
[1723967301645,16.81277191,141.97,141.9,65.0]
[1723967302069,23.85647191,141.97,141.89,9.35]
[1723967302238,23.85647191,141.97,141.86,24.25317784]
[1723967302239,0.12549,141.94,141.85,398.87939245]
[1723967302438,6.3634,141.92,141.86,9.35]
[1723967303242,7.33728191,141.92,141.86,9.35]
[1723967303444,7.33728191,141.92,141.82,61.65317784]
[1723967303445,6.3634,141.92,141.82,61.65317784]
[1723967303667,6.3634,141.92,141.85,9.35]
[1723967304758,6.3634,141.92,141.86,65.0]
[1723967305075,6.3634,141.92,141.85,9.35]
[1723967305076,0.97388191,141.91,141.85,9.35]
[1723967306664,6.3634,141.92,141.82,69.00310469]
[1723967306867,0.25098,141.91,141.84,9.35]
[1723967308576,6.3634,141.92,141.86,9.35]
[1723967308978,7.33728191,141.92,141.86,9.35]
[1723967309182,6.3634,141.92,141.86,9.35]
[1723967309371,7.33728191,141.92,141.86,9.35]
[1723967310182,7.33728191,141.92,141.84,9.35]
[1723967310364,7.33728191,141.92,141.85,45.0]
[1723967310765,6.3634,141.92,141.85,45.0]
[1723967313384,7.33728191,141.92,141.85,45.0]
[1723967313690,6.3634,141.92,141.85,45.0]
[1723967313866,7.33728191,141.92,141.85,45.0]
[1723967314380,6.3634,141.92,141.85,45.0]
[1723967314575,7.33728191,141.92,141.85,45.0]
[1723967316566,0.97388191,141.91,141.84,9.35]
[1723967320272,0.97388191,141.91,141.81,7.47338701]
[1723967320500,22.33089,141.9,141.82,45.0]
[1723967320801,0.97388191,141.89,141.82,45.0]
[1723967324797,0.12549,141.88,141.81,9.35]
[1723967325004,0.97388191,141.87,141.81,9.35]
[1723967326099,1.09937191,141.88,141.82,45.0]
[1723967333608,0.12549,141.88,141.82,45.0]
[1723967333984,29.50368,141.9,141.83,9.35]
[1723967334180,22.2054,141.9,141.85,9.35]
[1723967334487,22.2054,141.9,141.87,9.35]
[1723967343089,22.2054,141.9,141.85,9.35]
[1723967343291,22.2054,141.9,141.86,45.0]
[1723967345622,6.559,141.9,141.86,45.0]
[1723967345915,6.1086,141.93,141.89,9.35]
[1723967346714,6.1086,141.93,141.91,9.35]
[1723967348535,6.1086,141.93,141.9,45.0]
[1723967352527,6.1086,141.93,141.88,9.35]
[1723967352715,6.1086,141.93,141.89,45.0]
[1723967352903,6.1086,141.93,141.88,9.35]
[1723967353806,6.1086,141.93,141.85,0.12549]
[1723967354007,6.1086,141.93,141.87,9.35]
[1723967354208,16.43248191,141.93,141.82,16.6231]
[1723967354419,15.4586,141.93,141.85,9.35]
[1723967356107,6.1086,141.93,141.86,0.46182827]
[1723967356306,6.1086,141.93,141.87,9.35]
[1723967356508,6.1086,141.93,141.88,0.46176317]
[1723967358420,6.1086,141.93,141.87,9.35]
[1723967361599,6.1086,141.93,141.88,45.0]
[1723967364636,17.6087,141.98,141.89,10.7577415]
[1723967364637,7.0433,141.98,141.89,10.7577415]
[1723967364933,21.4435,141.97,141.91,9.35]
[1723967365145,21.4435,141.97,141.91,10.75787944]
[1723967365339,21.4435,141.96,141.83,8.92315479]
[1723967365513,21.4435,141.96,141.81,23.57929107]
[1723967365514,7.0457,141.93,141.81,23.57929107]
[1723967365709,7.0457,141.93,141.85,9.35]
[1723967366016,0.97388191,141.93,141.86,20.0]
[1723967366217,0.25098,141.92,141.86,20.0]